[Event "Titled Tuesday Blitz February 28 Early 2023"]
[White "Bews, Steven"]
[Black "Babazada, Khazar"]
[WhiteFideId "2400529"]
[BlackFideId "13413554"]
[WhiteElo "2601"]
[BlackElo "2359"]
[Result "0-1"]
[Round "08"]
[TimeControl "180+2"]
[Date "2023.02.28"]
[WhiteClock "0:00:07"]
[BlackClock "0:00:46"]

1. e4 {[%clk 0:03:00]}  Nf6 {[%clk 0:02:58]} 2. Nc3 {[%clk 0:02:54]}  d5 {[%clk 0:02:58]} 3. e5 {[%clk 0:02:37]}  Nfd7 {[%clk 0:02:57]} 4. e6 {[%clk 0:02:35]}  fxe6 {[%clk 0:02:57]} 5. Nf3 {[%clk 0:02:35]}  c5 {[%clk 0:02:56]} 6. d4 {[%clk 0:02:33]}  Nc6 {[%clk 0:02:56]} 7. Bb5 {[%clk 0:02:26]}  a6 {[%clk 0:02:32]} 8. Bxc6 {[%clk 0:02:25]}  bxc6 {[%clk 0:02:32]} 9. O-O {[%clk 0:02:26]}  g6 {[%clk 0:02:09]} 10. Re1 {[%clk 0:02:25]}  Bg7 {[%clk 0:02:04]} 11. Rxe6 {[%clk 0:02:22]}  O-O {[%clk 0:02:03]} 12. Rxc6 {[%clk 0:02:17]}  cxd4 {[%clk 0:01:56]} 13. Nxd4 {[%clk 0:02:16]}  Ne5 {[%clk 0:01:56]} 14. Rc5 {[%clk 0:01:36]}  Nd7 {[%clk 0:01:54]} 15. Rxd5 {[%clk 0:01:34]}  Qb6 {[%clk 0:01:51]} 16. Nf3 {[%clk 0:01:16]}  Nf6 {[%clk 0:01:48]} 17. Rd4 {[%clk 0:00:58]}  e5 {[%clk 0:01:37]} 18. Nxe5 {[%clk 0:00:53]}  Ng4 {[%clk 0:01:31]} 19. Nd5 {[%clk 0:00:40]}  Qa7 {[%clk 0:01:29]} 20. Nxg4 {[%clk 0:00:35]}  Qxd4 {[%clk 0:01:12]} 21. Qxd4 {[%clk 0:00:31]}  Bxd4 {[%clk 0:01:13]} 22. Be3 {[%clk 0:00:31]}  Bxb2 {[%clk 0:01:12]} 23. Rb1 {[%clk 0:00:30]}  Bxg4 {[%clk 0:01:11]} 24. Rxb2 {[%clk 0:00:30]}  Rad8 {[%clk 0:01:11]} 25. c4 {[%clk 0:00:29]}  Be6 {[%clk 0:01:11]} 26. Rd2 {[%clk 0:00:28]}  Bxd5 {[%clk 0:01:11]} 27. cxd5 {[%clk 0:00:27]}  Rf5 {[%clk 0:01:10]} 28. d6 {[%clk 0:00:27]}  Kf7 {[%clk 0:01:10]} 29. g3 {[%clk 0:00:25]}  Ke6 {[%clk 0:01:10]} 30. Rb2 {[%clk 0:00:22]}  Rxd6 {[%clk 0:01:08]} 31. Rb7 {[%clk 0:00:22]}  Rf7 {[%clk 0:01:08]} 32. Rb4 {[%clk 0:00:22]}  Kd5 {[%clk 0:01:01]} 33. Kg2 {[%clk 0:00:21]}  Rc6 {[%clk 0:00:57]} 34. Rd4+ {[%clk 0:00:20]}  Ke5 {[%clk 0:00:57]} 35. Ra4 {[%clk 0:00:20]}  Rb7 {[%clk 0:00:56]} 36. Bf4+ {[%clk 0:00:19]}  Kd5 {[%clk 0:00:56]} 37. Be3 {[%clk 0:00:20]}  Rb2 {[%clk 0:00:52]} 38. Rd4+ {[%clk 0:00:20]}  Ke6 {[%clk 0:00:52]} 39. Re4+ {[%clk 0:00:20]}  Kd7 {[%clk 0:00:53]} 40. Rd4+ {[%clk 0:00:20]}  Rd6 {[%clk 0:00:53]} 41. Rh4 {[%clk 0:00:19]}  h5 {[%clk 0:00:53]} 42. a4 {[%clk 0:00:18]}  Re6 {[%clk 0:00:53]} 43. Kf3 {[%clk 0:00:17]}  Kc6 {[%clk 0:00:52]} 44. Rc4+ {[%clk 0:00:17]}  Kb7 {[%clk 0:00:53]} 45. Rd4 {[%clk 0:00:16]}  a5 {[%clk 0:00:53]} 46. Rd5 {[%clk 0:00:16]}  Ka6 {[%clk 0:00:53]} 47. Rd7 {[%clk 0:00:15]}  Rb7 {[%clk 0:00:50]} 48. Rd5 {[%clk 0:00:15]}  Rb4 {[%clk 0:00:48]} 49. Rd4 {[%clk 0:00:13]}  Rxd4 {[%clk 0:00:47]} 50. Bxd4 {[%clk 0:00:14]}  Rc6 {[%clk 0:00:48]} 51. Ke4 {[%clk 0:00:11]}  Rc4 {[%clk 0:00:48]} 52. f4 {[%clk 0:00:10]}  Rxa4 {[%clk 0:00:49]} 53. h3 {[%clk 0:00:11]}  Rb4 {[%clk 0:00:45]} 54. g4 {[%clk 0:00:11]}  hxg4 {[%clk 0:00:46]} 55. hxg4 {[%clk 0:00:12]}  a4 {[%clk 0:00:47]} 56. f5 {[%clk 0:00:08]}  gxf5+ {[%clk 0:00:47]} 57. gxf5 {[%clk 0:00:09]}  a3 {[%clk 0:00:47]} 58. f6 {[%clk 0:00:07]}  a2 {[%clk 0:00:46]} 59. f7 {[%clk 0:00:07]}  Rxd4+ {[%clk 0:00:46]} 0-1


[Site "https://www.chess.com"]

[Event "Titled Tuesday Blitz February 28 Early 2023"]
[White "Andreikin, Dmitry"]
[Black "Kilic, Eray"]
[WhiteFideId "4158814"]
[BlackFideId "44517173"]
[WhiteElo "2736"]
[BlackElo "2328"]
[Result "1/2-1/2"]
[Round "08"]
[TimeControl "180+2"]
[Date "2023.02.28"]
[WhiteClock "0:00:04"]
[BlackClock "0:00:16"]

1. c4 {[%clk 0:03:00]}  e5 {[%clk 0:02:59]} 2. Nc3 {[%clk 0:03:00]}  Nc6 {[%clk 0:03:00]} 3. Nf3 {[%clk 0:02:55]}  g6 {[%clk 0:02:59]} 4. d4 {[%clk 0:02:54]}  exd4 {[%clk 0:03:00]} 5. Nd5 {[%clk 0:02:55]}  Bg7 {[%clk 0:02:55]} 6. Bg5 {[%clk 0:02:54]}  f6 {[%clk 0:02:54]} 7. Bf4 {[%clk 0:02:48]}  d6 {[%clk 0:02:54]} 8. Nxd4 {[%clk 0:02:48]}  Nge7 {[%clk 0:02:53]} 9. Nb5 {[%clk 0:02:38]}  Nxd5 {[%clk 0:02:17]} 10. cxd5 {[%clk 0:02:38]}  a6 {[%clk 0:02:04]} 11. Nxd6+ {[%clk 0:02:26]}  cxd6 {[%clk 0:02:04]} 12. dxc6 {[%clk 0:02:26]}  Qa5+ {[%clk 0:02:02]} 13. Bd2 {[%clk 0:02:23]}  Qb6 {[%clk 0:02:02]} 14. cxb7 {[%clk 0:02:18]}  Bxb7 {[%clk 0:02:03]} 15. Bc3 {[%clk 0:02:09]}  O-O {[%clk 0:01:59]} 16. e3 {[%clk 0:02:09]}  Rac8 {[%clk 0:01:56]} 17. Qb3+ {[%clk 0:02:06]}  Qxb3 {[%clk 0:01:55]} 18. axb3 {[%clk 0:02:07]}  f5 {[%clk 0:01:49]} 19. Kd2 {[%clk 0:01:56]}  f4 {[%clk 0:01:24]} 20. exf4 {[%clk 0:01:41]}  Rxf4 {[%clk 0:01:19]} 21. f3 {[%clk 0:01:42]}  Bh6 {[%clk 0:01:11]} 22. Kc2 {[%clk 0:01:30]}  d5 {[%clk 0:01:09]} 23. Kb1 {[%clk 0:01:29]}  Bg7 {[%clk 0:00:40]} 24. Bxg7 {[%clk 0:01:02]}  Kxg7 {[%clk 0:00:41]} 25. Bxa6 {[%clk 0:01:00]}  Bxa6 {[%clk 0:00:42]} 26. Rxa6 {[%clk 0:01:00]}  Rd4 {[%clk 0:00:27]} 27. Rc1 {[%clk 0:00:58]}  Re8 {[%clk 0:00:25]} 28. Rac6 {[%clk 0:00:55]}  Re3 {[%clk 0:00:22]} 29. R6c3 {[%clk 0:00:55]}  Re2 {[%clk 0:00:22]} 30. R3c2 {[%clk 0:00:53]}  Re3 {[%clk 0:00:22]} 31. Ka2 {[%clk 0:00:43]}  Rb4 {[%clk 0:00:22]} 32. Rc3 {[%clk 0:00:42]}  Re2 {[%clk 0:00:23]} 33. R1c2 {[%clk 0:00:42]}  Re1 {[%clk 0:00:23]} 34. Rd2 {[%clk 0:00:37]}  Rb5 {[%clk 0:00:23]} 35. b4 {[%clk 0:00:34]}  Rxb4 {[%clk 0:00:23]} 36. Rcd3 {[%clk 0:00:30]}  Rh4 {[%clk 0:00:14]} 37. h3 {[%clk 0:00:29]}  Ra4+ {[%clk 0:00:13]} 38. Kb3 {[%clk 0:00:29]}  Ra8 {[%clk 0:00:14]} 39. Rxd5 {[%clk 0:00:29]}  Ree8 {[%clk 0:00:15]} 40. Rd7+ {[%clk 0:00:27]}  Kh6 {[%clk 0:00:15]} 41. R7d4 {[%clk 0:00:28]}  Rab8+ {[%clk 0:00:16]} 42. Rb4 {[%clk 0:00:28]}  Re3+ {[%clk 0:00:16]} 43. Kc4 {[%clk 0:00:22]}  Rc8+ {[%clk 0:00:17]} 44. Kd4 {[%clk 0:00:22]}  Re7 {[%clk 0:00:17]} 45. Kd3 {[%clk 0:00:14]}  Rd8+ {[%clk 0:00:16]} 46. Kc2 {[%clk 0:00:15]}  Rc8+ {[%clk 0:00:16]} 47. Kd1 {[%clk 0:00:14]}  Rec7 {[%clk 0:00:16]} 48. Rh4+ {[%clk 0:00:12]}  Kg5 {[%clk 0:00:16]} 49. Rg4+ {[%clk 0:00:13]}  Kh6 {[%clk 0:00:16]} 50. b4 {[%clk 0:00:13]}  Rc1+ {[%clk 0:00:17]} 51. Ke2 {[%clk 0:00:13]}  Re8+ {[%clk 0:00:17]} 52. Kf2 {[%clk 0:00:13]}  Rb1 {[%clk 0:00:17]} 53. Kg3 {[%clk 0:00:13]}  Ree1 {[%clk 0:00:16]} 54. Rh4+ {[%clk 0:00:13]}  Kg5 {[%clk 0:00:15]} 55. Rd5+ {[%clk 0:00:12]}  Kf6 {[%clk 0:00:15]} 56. Rxh7 {[%clk 0:00:09]}  Rxb4 {[%clk 0:00:16]} 57. Rh4 {[%clk 0:00:08]}  Rb2 {[%clk 0:00:15]} 58. Rf4+ {[%clk 0:00:08]}  Kg7 {[%clk 0:00:15]} 59. Rg4 {[%clk 0:00:08]}  Ree2 {[%clk 0:00:15]} 60. Kh2 {[%clk 0:00:08]}  Re6 {[%clk 0:00:15]} 61. h4 {[%clk 0:00:08]}  Kf7 {[%clk 0:00:15]} 62. h5 {[%clk 0:00:06]}  gxh5 {[%clk 0:00:14]} 63. Rf5+ {[%clk 0:00:07]}  Rf6 {[%clk 0:00:14]} 64. Rxh5 {[%clk 0:00:04]}  Rxf3 {[%clk 0:00:15]} 65. Rh6 {[%clk 0:00:03]}  Rf6 {[%clk 0:00:14]} 66. Rh7+ {[%clk 0:00:03]}  Ke6 {[%clk 0:00:15]} 67. Kh3 {[%clk 0:00:03]}  Rb1 {[%clk 0:00:14]} 68. Kg3 {[%clk 0:00:02]}  Rb3+ {[%clk 0:00:14]} 69. Kh2 {[%clk 0:00:02]}  Rb1 {[%clk 0:00:14]} 70. Rh3 {[%clk 0:00:03]}  Rb2 {[%clk 0:00:13]} 71. Re4+ {[%clk 0:00:03]}  Kf7 {[%clk 0:00:14]} 72. Rh7+ {[%clk 0:00:02]}  Kg6 {[%clk 0:00:14]} 73. Reh4 {[%clk 0:00:03]}  Rff2 {[%clk 0:00:14]} 74. R7h6+ {[%clk 0:00:02]}  Kg7 {[%clk 0:00:15]} 75. Rh7+ {[%clk 0:00:02]}  Kg6 {[%clk 0:00:15]} 76. R4h6+ {[%clk 0:00:03]}  Kg5 {[%clk 0:00:13]} 77. Rh5+ {[%clk 0:00:03]}  Kg6 {[%clk 0:00:14]} 78. R5h6+ {[%clk 0:00:04]}  Kg5 {[%clk 0:00:14]} 79. Kh3 {[%clk 0:00:04]}  Rxg2 {[%clk 0:00:14]} 80. Rh5+ {[%clk 0:00:05]}  Kg6 {[%clk 0:00:14]} 81. R5h6+ {[%clk 0:00:05]}  Kg5 {[%clk 0:00:15]} 82. Rh5+ {[%clk 0:00:05]}  Kg6 {[%clk 0:00:15]} 83. R7h6+ {[%clk 0:00:04]}  Kg7 {[%clk 0:00:16]} 84. Rh7+ {[%clk 0:00:04]}  Kg6 {[%clk 0:00:16]} 1/2-1/2


[Site "https://www.chess.com"]

[Event "Titled Tuesday Blitz February 28 Early 2023"]
[White "Samunenkov, Ihor"]
[Black "Caruana, Fabiano"]
[WhiteFideId "14187086"]
[BlackFideId "2020009"]
[WhiteElo "2457"]
[BlackElo "2818"]
[Result "0-1"]
[Round "08"]
[TimeControl "180+2"]
[Date "2023.02.28"]
[WhiteClock "0:00:03"]
[BlackClock "0:01:04"]

1. d4 {[%clk 0:03:00]}  d6 {[%clk 0:02:59]} 2. Nf3 {[%clk 0:02:58]}  Nf6 {[%clk 0:02:57]} 3. c4 {[%clk 0:02:55]}  g6 {[%clk 0:02:57]} 4. g3 {[%clk 0:02:55]}  Bg7 {[%clk 0:02:57]} 5. Bg2 {[%clk 0:02:56]}  O-O {[%clk 0:02:57]} 6. O-O {[%clk 0:02:56]}  Bf5 {[%clk 0:02:57]} 7. b3 {[%clk 0:02:44]}  c5 {[%clk 0:02:52]} 8. Bb2 {[%clk 0:02:41]}  Nc6 {[%clk 0:02:52]} 9. Nbd2 {[%clk 0:02:37]}  Ne4 {[%clk 0:02:50]} 10. e3 {[%clk 0:02:26]}  Nxd2 {[%clk 0:02:48]} 11. Qxd2 {[%clk 0:02:21]}  Be4 {[%clk 0:02:48]} 12. Bc3 {[%clk 0:02:12]}  a5 {[%clk 0:02:46]} 13. d5 {[%clk 0:02:04]}  Bxf3 {[%clk 0:02:45]} 14. Bxf3 {[%clk 0:02:03]}  Ne5 {[%clk 0:02:44]} 15. Be2 {[%clk 0:01:42]}  a4 {[%clk 0:02:41]} 16. b4 {[%clk 0:01:42]}  cxb4 {[%clk 0:02:34]} 17. Bxb4 {[%clk 0:01:43]}  Nd7 {[%clk 0:02:34]} 18. Rab1 {[%clk 0:01:43]}  Qc7 {[%clk 0:02:34]} 19. Rfc1 {[%clk 0:01:40]}  Rfc8 {[%clk 0:02:32]} 20. Ba3 {[%clk 0:01:38]}  b6 {[%clk 0:02:27]} 21. Rb5 {[%clk 0:01:33]}  Nc5 {[%clk 0:02:26]} 22. Qc2 {[%clk 0:01:20]}  h5 {[%clk 0:02:10]} 23. Rcb1 {[%clk 0:01:18]}  Nd7 {[%clk 0:02:08]} 24. h4 {[%clk 0:01:08]}  Ra7 {[%clk 0:02:03]} 25. Kg2 {[%clk 0:01:01]}  Qd8 {[%clk 0:02:03]} 26. Qd2 {[%clk 0:00:54]}  Rac7 {[%clk 0:02:00]} 27. Qb4 {[%clk 0:00:46]}  Ra7 {[%clk 0:01:46]} 28. Qd2 {[%clk 0:00:45]}  Bf6 {[%clk 0:01:44]} 29. Qd1 {[%clk 0:00:34]}  Qf8 {[%clk 0:01:43]} 30. Rc1 {[%clk 0:00:31]}  Qg7 {[%clk 0:01:42]} 31. Kh2 {[%clk 0:00:28]}  Rca8 {[%clk 0:01:40]} 32. Rcb1 {[%clk 0:00:27]}  Be5 {[%clk 0:01:39]} 33. Qc2 {[%clk 0:00:21]}  Qh6 {[%clk 0:01:25]} 34. Bb2 {[%clk 0:00:15]}  Bxb2 {[%clk 0:01:24]} 35. R1xb2 {[%clk 0:00:15]}  Qg7 {[%clk 0:01:24]} 36. Rb1 {[%clk 0:00:15]}  Qf6 {[%clk 0:01:24]} 37. Kg2 {[%clk 0:00:14]}  a3 {[%clk 0:01:24]} 38. Qe4 {[%clk 0:00:12]}  Ra5 {[%clk 0:01:23]} 39. Qd4 {[%clk 0:00:10]}  Rxb5 {[%clk 0:01:20]} 40. Rxb5 {[%clk 0:00:10]}  Ra5 {[%clk 0:01:17]} 41. Rb3 {[%clk 0:00:06]}  Kg7 {[%clk 0:01:17]} 42. Kf1 {[%clk 0:00:05]}  Ra4 {[%clk 0:01:09]} 43. Kg2 {[%clk 0:00:04]}  Ra6 {[%clk 0:01:08]} 44. Kf1 {[%clk 0:00:04]}  Ra5 {[%clk 0:01:07]} 45. Kg2 {[%clk 0:00:04]}  Kg8 {[%clk 0:01:06]} 46. Bd3 {[%clk 0:00:03]}  Nc5 {[%clk 0:01:04]} 0-1


[Site "https://www.chess.com"]

[Event "Titled Tuesday Blitz February 28 Early 2023"]
[White "Adhiban, B."]
[Black "Costachi, Mihnea"]
[WhiteFideId "5018471"]
[BlackFideId "1217518"]
[WhiteElo "2587"]
[BlackElo "2456"]
[Result "1-0"]
[Round "08"]
[TimeControl "180+2"]
[Date "2023.02.28"]
[WhiteClock "0:00:36"]
[BlackClock "0:00:06"]

1. b3 {[%clk 0:02:52]}  d5 {[%clk 0:02:57]} 2. Bb2 {[%clk 0:02:51]}  Nf6 {[%clk 0:02:58]} 3. Nf3 {[%clk 0:02:51]}  g6 {[%clk 0:02:58]} 4. c4 {[%clk 0:02:50]}  c6 {[%clk 0:02:58]} 5. g3 {[%clk 0:02:50]}  Bg7 {[%clk 0:02:59]} 6. Bg2 {[%clk 0:02:51]}  O-O {[%clk 0:02:59]} 7. O-O {[%clk 0:02:51]}  Bf5 {[%clk 0:02:53]} 8. d3 {[%clk 0:02:51]}  Na6 {[%clk 0:02:52]} 9. Nbd2 {[%clk 0:02:48]}  Qc8 {[%clk 0:02:33]} 10. a3 {[%clk 0:02:45]}  Bh3 {[%clk 0:02:31]} 11. b4 {[%clk 0:02:45]}  Bxg2 {[%clk 0:02:31]} 12. Kxg2 {[%clk 0:02:46]}  Rd8 {[%clk 0:02:19]} 13. Rc1 {[%clk 0:02:45]}  e6 {[%clk 0:02:10]} 14. Rc2 {[%clk 0:02:41]}  Ne8 {[%clk 0:02:05]} 15. Bxg7 {[%clk 0:02:40]}  Nxg7 {[%clk 0:02:06]} 16. Qa1 {[%clk 0:02:38]}  Qd7 {[%clk 0:02:04]} 17. Ne5 {[%clk 0:02:23]}  Qe7 {[%clk 0:02:02]} 18. Ng4 {[%clk 0:02:23]}  d4 {[%clk 0:01:58]} 19. f4 {[%clk 0:02:20]}  h5 {[%clk 0:01:51]} 20. Ne5 {[%clk 0:02:16]}  Nf5 {[%clk 0:01:51]} 21. Rf3 {[%clk 0:02:16]}  Ne3+ {[%clk 0:01:49]} 22. Rxe3 {[%clk 0:02:16]}  dxe3 {[%clk 0:01:50]} 23. Ne4 {[%clk 0:02:15]}  f6 {[%clk 0:01:22]} 24. Nxg6 {[%clk 0:02:09]}  Qg7 {[%clk 0:01:23]} 25. Nxf6+ {[%clk 0:01:43]}  Kf7 {[%clk 0:01:21]} 26. Ne5+ {[%clk 0:01:43]}  Kxf6 {[%clk 0:01:20]} 27. Nxc6+ {[%clk 0:01:44]}  Kg6 {[%clk 0:01:14]} 28. Qxg7+ {[%clk 0:01:43]}  Kxg7 {[%clk 0:01:15]} 29. Nxd8 {[%clk 0:01:43]}  Rxd8 {[%clk 0:01:16]} 30. Kf3 {[%clk 0:01:44]}  Nb8 {[%clk 0:01:07]} 31. b5 {[%clk 0:01:41]}  Nd7 {[%clk 0:01:06]} 32. d4 {[%clk 0:01:39]}  Nf6 {[%clk 0:01:02]} 33. Kxe3 {[%clk 0:01:39]}  Ng4+ {[%clk 0:01:02]} 34. Ke4 {[%clk 0:01:39]}  Nf2+ {[%clk 0:00:48]} 35. Kf3 {[%clk 0:01:26]}  Ng4 {[%clk 0:00:40]} 36. e3 {[%clk 0:01:26]}  Kf6 {[%clk 0:00:36]} 37. c5 {[%clk 0:01:26]}  Ke7 {[%clk 0:00:34]} 38. h3 {[%clk 0:01:25]}  Nf6 {[%clk 0:00:35]} 39. c6 {[%clk 0:01:18]}  bxc6 {[%clk 0:00:30]} 40. Rxc6 {[%clk 0:01:19]}  Rd7 {[%clk 0:00:25]} 41. a4 {[%clk 0:01:18]}  Nd5 {[%clk 0:00:24]} 42. a5 {[%clk 0:01:18]}  Rb7 {[%clk 0:00:23]} 43. Rc5 {[%clk 0:01:17]}  Kd6 {[%clk 0:00:19]} 44. e4 {[%clk 0:01:12]}  Nc7 {[%clk 0:00:20]} 45. b6 {[%clk 0:01:08]}  axb6 {[%clk 0:00:20]} 46. axb6 {[%clk 0:01:09]}  Rxb6 {[%clk 0:00:21]} 47. Rxh5 {[%clk 0:01:09]}  Rb3+ {[%clk 0:00:19]} 48. Kg4 {[%clk 0:01:09]}  Nb5 {[%clk 0:00:20]} 49. d5 {[%clk 0:01:08]}  Nd4 {[%clk 0:00:18]} 50. dxe6 {[%clk 0:01:05]}  Ne2 {[%clk 0:00:19]} 51. Rh7 {[%clk 0:00:35]}  Rxg3+ {[%clk 0:00:17]} 52. Kf5 {[%clk 0:00:35]}  Nd4+ {[%clk 0:00:18]} 53. Kf6 {[%clk 0:00:36]}  Nxe6 {[%clk 0:00:05]} 54. e5+ {[%clk 0:00:36]}  Kd5 {[%clk 0:00:06]} 55. Rd7+ {[%clk 0:00:36]}  Kc6 {[%clk 0:00:06]} 56. Kxe6 {[%clk 0:00:35]}  Rg6+ {[%clk 0:00:07]} 57. Kf5 {[%clk 0:00:35]}  Kxd7 {[%clk 0:00:05]} 58. Kxg6 {[%clk 0:00:35]}  Ke6 {[%clk 0:00:06]} 59. h4 {[%clk 0:00:36]} 1-0


[Site "https://www.chess.com"]

[Event "Titled Tuesday Blitz February 28 Early 2023"]
[White "Svane, Rasmus"]
[Black "Mirzoev, Azer"]
[WhiteFideId "4657101"]
[BlackFideId "13400304"]
[WhiteElo "2597"]
[BlackElo "2525"]
[Result "1-0"]
[Round "08"]
[TimeControl "180+2"]
[Date "2023.02.28"]
[WhiteClock "0:00:10"]
[BlackClock "0:00:16"]

1. Nf3 {[%clk 0:02:52]}  Nf6 {[%clk 0:03:00]} 2. g3 {[%clk 0:02:51]}  d5 {[%clk 0:03:00]} 3. Bg2 {[%clk 0:02:52]}  c6 {[%clk 0:03:01]} 4. O-O {[%clk 0:02:52]}  Bg4 {[%clk 0:03:01]} 5. h3 {[%clk 0:02:52]}  Bh5 {[%clk 0:03:00]} 6. d4 {[%clk 0:02:52]}  Nbd7 {[%clk 0:03:00]} 7. c4 {[%clk 0:02:52]}  e6 {[%clk 0:02:59]} 8. cxd5 {[%clk 0:02:52]}  cxd5 {[%clk 0:02:58]} 9. Qb3 {[%clk 0:02:52]}  Qb6 {[%clk 0:02:58]} 10. Nc3 {[%clk 0:02:52]}  Qxb3 {[%clk 0:02:56]} 11. axb3 {[%clk 0:02:53]}  a6 {[%clk 0:02:56]} 12. e4 {[%clk 0:02:39]}  Nxe4 {[%clk 0:02:50]} 13. Nxe4 {[%clk 0:02:39]}  dxe4 {[%clk 0:02:50]} 14. Ng5 {[%clk 0:02:40]}  Nf6 {[%clk 0:02:31]} 15. Nxe4 {[%clk 0:02:35]}  Nxe4 {[%clk 0:02:24]} 16. Bxe4 {[%clk 0:02:36]}  O-O-O {[%clk 0:02:24]} 17. Be3 {[%clk 0:01:53]}  Kb8 {[%clk 0:02:22]} 18. Rfc1 {[%clk 0:01:45]}  Bg6 {[%clk 0:02:18]} 19. Bf3 {[%clk 0:01:43]}  Bd6 {[%clk 0:02:14]} 20. Rc4 {[%clk 0:01:38]}  Bd3 {[%clk 0:02:00]} 21. Rc3 {[%clk 0:01:35]}  Bf5 {[%clk 0:02:00]} 22. g4 {[%clk 0:01:33]}  Bg6 {[%clk 0:01:59]} 23. Rc4 {[%clk 0:01:24]}  h5 {[%clk 0:01:52]} 24. g5 {[%clk 0:01:11]}  Bd3 {[%clk 0:01:52]} 25. Rc3 {[%clk 0:01:11]}  Bf5 {[%clk 0:01:52]} 26. Kg2 {[%clk 0:01:10]}  g6 {[%clk 0:01:39]} 27. Rd1 {[%clk 0:01:09]}  Rhe8 {[%clk 0:01:36]} 28. Rc4 {[%clk 0:01:08]}  Rd7 {[%clk 0:01:32]} 29. d5 {[%clk 0:01:04]}  e5 {[%clk 0:01:30]} 30. Be4 {[%clk 0:00:56]}  Bxe4+ {[%clk 0:01:28]} 31. Rxe4 {[%clk 0:00:57]}  Rc8 {[%clk 0:01:27]} 32. Rc4 {[%clk 0:00:56]}  Rdc7 {[%clk 0:01:26]} 33. Rxc7 {[%clk 0:00:51]}  Rxc7 {[%clk 0:01:26]} 34. Kf3 {[%clk 0:00:52]}  Rc2 {[%clk 0:01:19]} 35. Rd2 {[%clk 0:00:46]}  Rc1 {[%clk 0:01:19]} 36. Re2 {[%clk 0:00:43]}  Rh1 {[%clk 0:01:17]} 37. Kg2 {[%clk 0:00:43]}  Rb1 {[%clk 0:01:17]} 38. Rc2 {[%clk 0:00:41]}  Rd1 {[%clk 0:01:14]} 39. Rd2 {[%clk 0:00:39]}  Rc1 {[%clk 0:01:05]} 40. Kf3 {[%clk 0:00:37]}  Kc7 {[%clk 0:00:58]} 41. Re2 {[%clk 0:00:34]}  Rh1 {[%clk 0:00:57]} 42. Kg2 {[%clk 0:00:34]}  Rd1 {[%clk 0:00:55]} 43. Rd2 {[%clk 0:00:33]}  Rb1 {[%clk 0:00:51]} 44. Rc2+ {[%clk 0:00:32]}  Kd7 {[%clk 0:00:51]} 45. Bc1 {[%clk 0:00:28]}  Ra1 {[%clk 0:00:50]} 46. Kf3 {[%clk 0:00:27]}  Ra5 {[%clk 0:00:41]} 47. Ke4 {[%clk 0:00:26]}  Rb5 {[%clk 0:00:41]} 48. Rc3 {[%clk 0:00:25]}  Rb4+ {[%clk 0:00:42]} 49. Kf3 {[%clk 0:00:25]}  Rh4 {[%clk 0:00:41]} 50. Ke2 {[%clk 0:00:21]}  Re4+ {[%clk 0:00:36]} 51. Be3 {[%clk 0:00:20]}  Rb4 {[%clk 0:00:36]} 52. Bd2 {[%clk 0:00:19]}  Rb5 {[%clk 0:00:35]} 53. Rd3 {[%clk 0:00:19]}  Bc5 {[%clk 0:00:35]} 54. Kf3 {[%clk 0:00:17]}  Bd4 {[%clk 0:00:32]} 55. Ke4 {[%clk 0:00:16]}  Bxb2 {[%clk 0:00:30]} 56. Rf3 {[%clk 0:00:12]}  Ke7 {[%clk 0:00:29]} 57. d6+ {[%clk 0:00:12]}  Kxd6 {[%clk 0:00:28]} 58. Rxf7 {[%clk 0:00:12]}  Rxb3 {[%clk 0:00:24]} 59. Rf6+ {[%clk 0:00:13]}  Kc5 {[%clk 0:00:24]} 60. Rxg6 {[%clk 0:00:14]}  Bc3 {[%clk 0:00:20]} 61. Be3+ {[%clk 0:00:09]}  Bd4 {[%clk 0:00:20]} 62. Rg8 {[%clk 0:00:09]}  Bxe3 {[%clk 0:00:19]} 63. fxe3 {[%clk 0:00:10]}  a5 {[%clk 0:00:18]} 64. g6 {[%clk 0:00:10]}  Rb1 {[%clk 0:00:15]} 65. g7 {[%clk 0:00:10]}  Rg1 {[%clk 0:00:15]} 66. Rc8+ {[%clk 0:00:10]}  Kb4 {[%clk 0:00:15]} 67. g8=Q {[%clk 0:00:11]}  Rxg8 {[%clk 0:00:15]} 68. Rxg8 {[%clk 0:00:12]}  a4 {[%clk 0:00:15]} 69. Kxe5 {[%clk 0:00:10]}  b5 {[%clk 0:00:14]} 70. e4 {[%clk 0:00:10]}  Kb3 {[%clk 0:00:15]} 71. Kd4 {[%clk 0:00:10]}  a3 {[%clk 0:00:16]} 72. e5 {[%clk 0:00:10]}  a2 {[%clk 0:00:15]} 73. Ra8 {[%clk 0:00:11]}  b4 {[%clk 0:00:15]} 74. Kc5 {[%clk 0:00:10]}  Kb2 {[%clk 0:00:16]} 75. Kxb4 {[%clk 0:00:10]} 1-0


[Site "https://www.chess.com"]

[Event "Titled Tuesday Blitz February 28 Early 2023"]
[White "Kamsky, Gata"]
[Black "Kucuksari, Kaan"]
[WhiteFideId "2000024"]
[BlackFideId "6380166"]
[WhiteElo "2666"]
[BlackElo "2364"]
[Result "1-0"]
[Round "08"]
[TimeControl "180+2"]
[Date "2023.02.28"]
[WhiteClock "0:00:04"]
[BlackClock "0:00:12"]

1. d4 {[%clk 0:03:00]}  Nf6 {[%clk 0:02:59]} 2. Bf4 {[%clk 0:02:59]}  c5 {[%clk 0:02:55]} 3. e3 {[%clk 0:02:57]}  Qb6 {[%clk 0:02:51]} 4. b3 {[%clk 0:02:53]}  Nc6 {[%clk 0:02:50]} 5. c3 {[%clk 0:02:51]}  d5 {[%clk 0:02:46]} 6. Bd3 {[%clk 0:02:49]}  Bg4 {[%clk 0:02:33]} 7. Nf3 {[%clk 0:02:46]}  e6 {[%clk 0:02:27]} 8. O-O {[%clk 0:02:45]}  Be7 {[%clk 0:02:24]} 9. h3 {[%clk 0:02:42]}  Bh5 {[%clk 0:02:24]} 10. a3 {[%clk 0:02:40]}  O-O {[%clk 0:02:22]} 11. Nbd2 {[%clk 0:02:39]}  Bg6 {[%clk 0:02:17]} 12. Bxg6 {[%clk 0:02:31]}  hxg6 {[%clk 0:02:18]} 13. dxc5 {[%clk 0:02:26]}  Qxc5 {[%clk 0:01:59]} 14. c4 {[%clk 0:02:18]}  dxc4 {[%clk 0:01:57]} 15. Nxc4 {[%clk 0:02:17]}  Nd5 {[%clk 0:01:49]} 16. Bg3 {[%clk 0:01:52]}  b5 {[%clk 0:01:43]} 17. Nce5 {[%clk 0:01:44]}  Nxe5 {[%clk 0:01:43]} 18. Bxe5 {[%clk 0:01:41]}  Rfd8 {[%clk 0:01:39]} 19. b4 {[%clk 0:01:34]}  Qb6 {[%clk 0:01:24]} 20. Qb3 {[%clk 0:01:34]}  a5 {[%clk 0:01:22]} 21. e4 {[%clk 0:01:27]}  Nf6 {[%clk 0:01:21]} 22. bxa5 {[%clk 0:01:23]}  Qxa5 {[%clk 0:01:20]} 23. Bxf6 {[%clk 0:01:14]}  gxf6 {[%clk 0:00:57]} 24. Rab1 {[%clk 0:01:01]}  Qa4 {[%clk 0:00:44]} 25. Qxb5 {[%clk 0:01:00]}  Qxe4 {[%clk 0:00:41]} 26. Qb7 {[%clk 0:00:52]}  Qxb7 {[%clk 0:00:38]} 27. Rxb7 {[%clk 0:00:52]}  Bxa3 {[%clk 0:00:39]} 28. Rfb1 {[%clk 0:00:49]}  Bc5 {[%clk 0:00:38]} 29. R1b2 {[%clk 0:00:40]}  Rd1+ {[%clk 0:00:35]} 30. Kh2 {[%clk 0:00:40]}  Rf1 {[%clk 0:00:32]} 31. Rc2 {[%clk 0:00:11]}  Bxf2 {[%clk 0:00:32]} 32. Rcc7 {[%clk 0:00:09]}  Be3 {[%clk 0:00:28]} 33. Kg3 {[%clk 0:00:08]}  Rf8 {[%clk 0:00:20]} 34. Rc3 {[%clk 0:00:06]}  Bh6 {[%clk 0:00:19]} 35. Rcc7 {[%clk 0:00:05]}  Rc1 {[%clk 0:00:19]} 36. Rd7 {[%clk 0:00:05]}  Bg7 {[%clk 0:00:17]} 37. h4 {[%clk 0:00:05]}  f5 {[%clk 0:00:17]} 38. h5 {[%clk 0:00:05]}  gxh5 {[%clk 0:00:16]} 39. Kh4 {[%clk 0:00:05]}  Rh1+ {[%clk 0:00:15]} 40. Kg5 {[%clk 0:00:06]}  Rd1 {[%clk 0:00:11]} 41. Rxd1 {[%clk 0:00:04]}  f6+ {[%clk 0:00:12]} 42. Kg6 {[%clk 0:00:04]} 1-0


[Site "https://www.chess.com"]